Cogmind - Beta 13 @@@ ROGUE MODE // 2024.04.28 @ 16:57:18 Player: Leaves Result: Destroyed by L-31 Rogue with Katana Performance ------------- Evolutions (0) 0 Regions Visited (4) 800 Robots Destroyed (8) 40 Value Destroyed (181) 181 Prototype IDs (25) 500 Alien Tech Used (0) 0 Bonus (300) 300 TOTAL SCORE: 1821 Bonus ------- Aligned with FarCom 300 Cogmind --------- Core Integrity 0/250 Matter 190/300 Energy 239/250 System Corruption 0% Temperature Cool (69) Movement Treading (320) Ox2 Location -9/Mines Parts ------- > --- POWER (1) -------- Ion Engine > --- PROPULSION (2) --- Improved Treads > --- UTILITY (2) ------ High-capacity Storage Unit Utility Shielding > --- WEAPON (2) ------- Medium Laser Heavy Assault Rifle > --- INVENTORY (20) --- Light Ion Engine Light Ion Engine Flight Unit Small Battery (100) High-capacity Matter Pod (200) Structural Scanner Sensor Array Experimental Sensor Array Seismic Detector 0b10 Alert Chip Power Shielding Power Shielding Utility Shielding Peak State ------------ > --- POWER ------------ Ion Engine > --- PROPULSION ------- Improved Treads Improved Treads > --- UTILITY ---------- High-capacity Storage Unit Light Armor Plating > --- WEAPON ----------- Heavy Assault Rifle Heavy Assault Rifle > --- INVENTORY -------- Light Ion Engine Light Ion Engine Improved Treads Improved Treads Flight Unit Small Battery High-capacity Matter Pod Structural Scanner Sensor Array Experimental Sensor Array Seismic Detector 0b10 Alert Chip Power Shielding Power Shielding Utility Shielding Utility Shielding Medium Laser [Rating: 14] Favorites ----------- Power Ion Engine Engine Ion Engine Propulsion Improved Treads Treads Improved Treads Utility Light Armor Plating Storage High-capacity Storage Unit Protection Light Armor Plating Weapon Medium Laser Energy Gun Medium Laser Ballistic Gun Heavy Assault Rifle Launcher Grenade Launcher Build | -11 -10 -10 -10 -9 ------- Run | Yrd Mat Min Exi Min Slots Evolved . | . . . . . Power . | . . . . . Propulsion . | . . . . . Utility . | . . . . . Weapon . | . . . . . Parts Attached 23 | 6 8 1 . 8 Power 1 | 1 . . . . Engine 1 | 1 . . . . Core . | . . . . . Reactor . | . . . . . Propulsion 7 | 2 3 . . 2 Treads 7 | 2 3 . . 2 Leg . | . . . . . Wheel . | . . . . . Hover . | . . . . . Flight . | . . . . . Utility 7 | 1 3 . . 3 Device . | . . . . . Storage 2 | 1 1 . . . Processor . | . . . . . Hackware . | . . . . . Protection 5 | . 2 . . 3 Artifact . | . . . . . Weapon 8 | 2 2 1 . 3 Energy Gun 5 | 2 2 . . 1 Energy Cannon . | . . . . . Ballistic Gun 2 | . . . . 2 Ballistic Cannon . | . . . . . Launcher 1 | . . 1 . . Special Weapon . | . . . . . Impact Weapon . | . . . . . Slashing Weapon . | . . . . . Piercing Weapon . | . . . . . Special Melee Weapon . | . . . . . Unidentified Prototypes . | . . . . . Parts Lost 7 | . . . . 7 Power . | . . . . . Propulsion 2 | . . . . 2 Utility 2 | . . . . 2 Weapon 3 | . . . . 3 Highest Loss Streak 6 | . . . . 6 To Critical Strikes . | . . . . . Average Slot Usage (%) 99 | . 97 100 100 97 Engine 14 | . 14 14 14 14 Treads 27 | . 28 28 28 26 Storage 14 | . 14 14 14 14 Protection 13 | . 12 14 14 13 Energy Gun 16 | . 27 14 14 12 Ballistic Gun 2 | . . . . 13 Launcher 9 | . . 14 14 1 Naked Turns . | . . . . . Heaviest Build 54 | 14 52 53 53 54 Greatest Support 46 | 40 46 46 46 46 Greatest Overweight (x) 2 | . 2 1 1 1 Average Overweight (x) . | . . 1 1 1 Largest Inventory Capacity 20 | 8 20 20 20 20 Average Capacity 18 | 7 13 20 20 20 Most Carried 20 | 5 19 20 20 20 Average Carried 16 | 3 11 19 19 14 Final Capacity 20 | 8 20 20 20 20 Final Carried 20 | 4 18 20 20 13 Class Distribution -------------------- 100% | Mutant Dominant Class ---------------- Mutant | -10/Materials Mutant | -10/Mines Mutant | -10/Exiles Mutant | -9/Mines Resources | -11 -10 -10 -10 -9 ----------- Run | Yrd Mat Min Exi Min Matter Collected 372 | 195 67 13 85 12 Remotely . | . . . . . Salvage Created 278 | . 95 26 . 157 Parts 18 | . 5 4 . 9 Haulers Intercepted 1 | . 1 . . . Recyclers Shooed 1 | . 1 . . . Parts Field Recycled . | . . . . . Retrieved Matter . | . . . . . Parts Self-Destructed . | . . . . . Prevented . | . . . . . Kills | -11 -10 -10 -10 -9 ------- Run | Yrd Mat Min Exi Min Combat Hostiles Destroyed 15 | . 1 3 . 11 Guns 8 | . 1 . . 7 AOE 7 | . . 3 . 4 Classes Destroyed 4 | . 2 1 . 1 Hauler 1 | . 1 . . . Swarmer 3 | . . 3 . . Grunt 4 | . 1 . . 3 Assembled 8 | . . . . 8 Best Kill Streak 4 | . 2 3 . 4 Combat Bots Only 4 | . 1 3 . 4 Max Kills in Single Turn 4 | . 1 3 . 4 Gunslinging 1 | . . . . 1 Exploded 4 | . . 3 . 4 Melee . | . . . . . Uniques/NPCs Destroyed . | . . . . . Combat | -11 -10 -10 -10 -9 -------- Run | Yrd Mat Min Exi Min Hostile Shots Fired 110 | . 8 3 . 99 Missed 32 | . 1 1 . 30 Damage Taken 1275 | . 79 32 . 1164 Core 261 | . 24 . . 237 Absorbed by Shields . | . . . . . Core Remaining (%) 100 | 100 . . . . Volleys Fired 25 | . 6 1 . 18 Largest 2 | . 2 2 . 2 Hottest 100 | . 100 80 . 80 Shots Fired 47 | . 10 2 . 35 Gun 44 | . 10 1 . 33 Cannon . | . . . . . Launcher 3 | . . 1 . 2 Special . | . . . . . Kinetic 20 | . . . . 20 Thermal 24 | . 10 1 . 13 Explosive 3 | . . 1 . 2 Electromagnetic . | . . . . . Robot Hit Streak 6 | . 4 . . 6 Robot Miss Streak 3 | . 2 1 . 3 Penetration Max . | . . . . . Secondary Targets 1 | . . . . 1 Max Gunslinging Chain 1 | . . . . 1 Shots Hit Robots 30 | . 6 . . 24 Core Hits 36 | . 4 3 . 29 Critical Kills . | . . . . . Critical Parts Destroyed . | . . . . . Critical Strikes 2 | . 1 . . 1 Burn 2 | . 1 . . 1 Melee Attacks . | . . . . . Impact . | . . . . . Slashing . | . . . . . Piercing . | . . . . . Sneak Attacks . | . . . . . Combat Hostiles . | . . . . . Follow-up Attacks . | . . . . . Damage Inflicted 869 | . 76 106 . 687 Guns 418 | . 76 . . 342 Cannons . | . . . . . Explosions 444 | . . 106 . 338 Melee . | . . . . . Ramming 7 | . . . . 7 Kinetic 229 | . . . . 229 Thermal 189 | . 76 . . 113 Explosive 444 | . . 106 . 338 Electromagnetic . | . . . . . Impact . | . . . . . Slashing . | . . . . . Piercing . | . . . . . Highest Corruption . | . . . . . Average Corruption . | . . . . . Corruption Purged . | . . . . . Corruption Blocked . | . . . . . Overload Shots . | . . . . . Overflow Damage . | . . . . . Projectiles . | . . . . . Explosions . | . . . . . Melee . | . . . . . Knockbacks . | . . . . . Impact . | . . . . . Kinetic . | . . . . . Secondary . | . . . . . Self-Inflicted Damage 39 | . . 17 . 22 Shots 2 | . . 1 . 1 Rammed 1 | . . . . 1 Targets Rammed 1 | . . . . 1 Kicked . | . . . . . Crushed . | . . . . . Highest Temperature 128 | . 128 27 . 81 Average Temperature 46 | . 67 16 . 35 Received Heat Transfer 210 | . 42 . . 168 Siege Activations . | . . . . . Robots Corrupted . | . . . . . Combat Hostiles . | . . . . . Parts Fried . | . . . . . Impact Corruptions . | . . . . . Robots Melted . | . . . . . Combat Hostiles . | . . . . . Parts Melted . | . . . . . Heat Transferred 703 | . 296 . . 407 Parts Sabotaged . | . . . . . Parts Stolen . | . . . . . Parts Stripped . | . . . . . Power Chain Reactions . | . . . . . Alert | -11 -10 -10 -10 -9 ------- Run | Yrd Mat Min Exi Min Peak Influence 85 | . 33 84 . 85 Initial 5 | . . 5 . . Average 33 | . 11 50 . 41 Maximum Alert Level . | . . . . . Low Security (%) 100 | 100 100 100 . 100 Level 1 . | . . . . . Level 2 . | . . . . . Level 3 . | . . . . . Level 4 . | . . . . . Level 5 . | . . . . . High Security . | . . . . . Max Security . | . . . . . Squads Dispatched 1 | . 1 . . . Investigation . | . . . . . Extermination . | . . . . . Reinforcement 1 | . 1 . . . Assault . | . . . . . Garrison . | . . . . . Intercept . | . . . . . Searches Triggered . | . . . . . Construction Impeded . | . . . . . Haulers Reinforced . | . . . . . Active Scanning Responses . | . . . . . Cargo Convoy Interrupts . | . . . . . Stealth | -11 -10 -10 -10 -9 --------- Run | Yrd Mat Min Exi Min Distress Signals 1 | . 1 . . . Communications Jammed . | . . . . . Distress Signals . | . . . . . Times Spotted 30 | . 3 3 . 24 Peak Tracking Total 20 | . 2 3 . 20 Tactical Retreats 1 | . . . . 1 Traps | -11 -10 -10 -10 -9 ------- Run | Yrd Mat Min Exi Min Traps Triggered 2 | . 2 . . . Indirectly . | . . . . . Trap Hack Attempts . | . . . . . Triggered . | . . . . . Disarmed . | . . . . . Reprogrammed . | . . . . . Reused . | . . . . . Traps Extracted . | . . . . . Installed . | . . . . . Triggered . | . . . . . Machines | -11 -10 -10 -10 -9 ---------- Run | Yrd Mat Min Exi Min Machines Disabled . | . . . . . Max in Single Turn . | . . . . . Machines Repaired . | . . . . . Machines Dismantled . | . . . . . Machines Sabotaged . | . . . . . Overloaded Fab Kills . | . . . . . Hacking | -11 -10 -10 -10 -9 --------- Run | Yrd Mat Min Exi Min Machines Accessed 4 | . 2 . 2 . Terminals 2 | . 2 . . . Fabricators . | . . . . . Repair Stations . | . . . . . Recycling Units . | . . . . . Scanalyzers . | . . . . . Garrison Access . | . . . . . Total Hacks 9 | . 4 . 5 . Successful 6 | . 1 . 5 . Failed 3 | . 3 . . . Catastrophic 2 | . 2 . . . Database Lockouts . | . . . . . Manual 5 | . 4 . 1 . Terminals 4 | . 4 . . . Fabricators . | . . . . . Repair Stations . | . . . . . Recycling Units . | . . . . . Scanalyzers . | . . . . . Garrison Access . | . . . . . Terminal Hacks 6 | . 1 . 5 . Record 4 | . . . 4 . Prototype ID Bank 1 | . 1 . . . Derelict Proto ID Bank 1 | . . . 1 . Fabricator Hacks . | . . . . . Repair Station Hacks . | . . . . . Recycling Unit Hacks . | . . . . . Scanalyzer . | . . . . . Garrison Access Hacks . | . . . . . Unauthorized Hacks . | . . . . . Terminals . | . . . . . Fabricators . | . . . . . Repair Stations . | . . . . . Recycling Units . | . . . . . Scanalyzers . | . . . . . Garrison Access . | . . . . . Data Cores Recovered . | . . . . . Used . | . . . . . Hacking Detections 2 | . 2 . . . Full Trace Events . | . . . . . Feedback Events . | . . . . . Feedback Blocked . | . . . . . Robot Schematics Acquired . | . . . . . Robots Built . | . . . . . Authchips . | . . . . . Time . | . . . . . Total Robot Build Rating . | . . . . . Part Schematics Acquired . | . . . . . Parts Built . | . . . . . Authchips . | . . . . . Time . | . . . . . Total Part Build Rating . | . . . . . Parts Repaired . | . . . . . Time . | . . . . . Parts Recycled . | . . . . . Recycled Matter . | . . . . . Retrieved Matter . | . . . . . Retrieved Components . | . . . . . Parts Scanalyzed . | . . . . . Part Schematics Acquired . | . . . . . Parts Damaged . | . . . . . Bothacking | -11 -10 -10 -10 -9 ------------ Run | Yrd Mat Min Exi Min Used RIF Installer . | . . . . . Robots Hacked . | . . . . . Non-combat . | . . . . . Combat . | . . . . . Robot Hacks Applied . | . . . . . Relay Couplers Released . | . . . . . Fabnet Peak Effective % . | . . . . . Robots Rewired . | . . . . . Allies Hacked . | . . . . . Hacks Repelled . | . . . . . Allies | -11 -10 -10 -10 -9 -------- Run | Yrd Mat Min Exi Min Total Allies . | . . . . . Largest Group . | . . . . . Highest-Rated Group . | . . . . . Highest-Rated Ally . | . . . . . Total Orders . | . . . . . Ally Attacks . | . . . . . Total Damage . | . . . . . Kills . | . . . . . Allies Corrupted . | . . . . . Allies Melted . | . . . . . Intel | -11 -10 -10 -10 -9 ------- Run | Yrd Mat Min Exi Min Robot Analysis Total . | . . . . . Derelict Logs Recovered 2 | . . 2 . . Drone Launches . | . . . . . Drone Recoveries . | . . . . . Exploration | -11 -10 -10 -10 -9 ------------- Run | Yrd Mat Min Exi Min Turns Passed 2829 | 72 540 660 1155 402 Spaces Moved 1080 | 43 242 271 480 44 Core 8 | 8 . . . . Treads 1072 | 35 242 271 480 44 Legs . | . . . . . Wheels . | . . . . . Hover . | . . . . . Flight . | . . . . . Fastest Speed 50 | 50 160 240 240 240 Average Speed 224 | 139 189 240 240 240 Slowest Speed 320 | 160 320 240 240 240 Overloaded Moves . | . . . . . Propulsion Burnouts . | . . . . . Robots Hopped . | . . . . . Cave-ins Triggered . | . . . . . Exploration Rate (%) 39 | 3 33 55 88 16 Regions Visited 4 Branch Regions 3 Pre-discovered Areas 3 | . . 2 1 . Known Exits Taken . | . . . . . Unknown Exits Taken 4 | 1 1 1 1 . Scrap Searched . | . . . . . Spaces Dug . | . . . . . Terrain Destroyed 23 | . . 9 . 14 Melee . | . . . . . Projectile . | . . . . . AOE 23 | . . 9 . 14 Terrain Rammed . | . . . . . Walls Destroyed . | . . . . . Machines Disabled . | . . . . . Actions | -11 -10 -10 -10 -9 --------- Run | Yrd Mat Min Exi Min Total 1439 | 53 316 279 485 306 Wait 272 | . 32 5 . 235 Move 1076 | 42 241 270 479 44 Hop . | . . . . . Pick Up 30 | 5 20 2 3 . Fast Attach 11 | 5 5 . . 1 Attach 8 | 1 . . . 7 Detach . | . . . . . Swap 4 | . 3 1 . . Drop 12 | . 9 . 3 . Fire 25 | . 6 1 . 18 Melee . | . . . . . Ram . | . . . . . Kick . | . . . . . Crush 1 | . . . . 1 Escape Stasis . | . . . . . Rewire . | . . . . . Trap . | . . . . . Miscellaneous . | . . . . . Route ------- -11/Scrapyard -10/Materials (discovered 2 exits: [*Mat] / [*Min]) -10/Mines (discovered 3 exits: [*Mat x2] / *Exi) -10/Exiles -9/Mines History --------- Turn | Location | Event 22 | -11/Scrapyard | Discovered new exit (range 15) 73 | -11/Scrapyard | Entered Materials 303 | -10/Materials | Build established: Mutant 479 | -10/Materials | Discovered new exit (range 7) 577 | -10/Materials | Discovered new exit (range 16) 613 | -10/Materials | Entered Mines 631 | -10/Mines | Met a Derelict bent on vengeance 645 | -10/Mines | Learned location of Storage (-8) 884 | -10/Mines | Learned location of Zion (-6) 1030 | -10/Mines | Discovered new exit (range 10) 1102 | -10/Mines | Found a damaged Exp. Sensor Array with a note attached 1106 | -10/Mines | Found Prototype Device 1184 | -10/Mines | Discovered new exit (range 14) 1259 | -10/Mines | Deemed a non-threat by the Exiles lab entrance 1261 | -10/Mines | Discovered new exit (range 5) 1273 | -10/Mines | Entered Exiles 1331 | -10/Exiles | Met 8R-AWN 1372 | -10/Exiles | Met EX-HEX 1449 | -10/Exiles | Met EX-BIN 1477 | -10/Exiles | Aligned with FarCom system 1480 | -10/Exiles | Given EX-Vault access code 1540 | -10/Exiles | Opened EX-Vault 1562 | -10/Exiles | Found 0b10 Alert Chip 1661 | -10/Exiles | Warned to stay clear of 0b10 Research branches 1745 | -10/Exiles | Met EX-DEC 1934 | -10/Exiles | Visited The Gauntlet 2404 | -10/Exiles | Discovered new exit (range 10) 2428 | -10/Exiles | Left Exiles lab with 0b10 Alert Chip 2428 | -10/Exiles | Entered Mines 2429 | -9/Mines | Assembled infested the area 2434 | -9/Mines | Assisted by a Guerilla fighting off Assembled 2481 | -9/Mines | Core integrity fell below 50% 2532 | -9/Mines | Lost 6 parts (2n1u3w) 2818 | -9/Mines | Core integrity fell below 20% 2830 | -9/Mines | Destroyed by L-31 Rogue with Katana Last Messages --------------- 02501_ Imp. Treads destroyed. 02504_ G-47 Trooper destroyed. 02508_ U-05 Engineer lays Concrete. 02513_ U-05 Engineer builds a Wall. 02518_ Acquired 8 matter. 02520_ U-05 Engineer lays Concrete. 02520_ G-34 Mercenary destroyed. 02521_ U-05 Engineer lays Concrete. 02522_ U-05 Engineer builds a Wall. 02526_ Acquired 2 matter. 02527_ U-05 Engineer lays Concrete. 02618_ K-01 Serf collects debris. 02660_ U-05 Engineer builds a Wall. 02794_ Acquired 2 matter. 02806_ G-34 Mercenary destroyed. 02817_ Lgt. Armor Plating severed. 02818_ K-01 Serf collects debris. 02818_ Acquired Lgt. Armor Plating. 02822_ Lgt. Armor Plating destroyed. 02827_ Imp. Treads severed. Map ----- +----------------------------------------------------+ | ?????????????????????????????????????????????????? | | ?????????????????????????????????????????????????? | | ?????????????????????????????????????????????????? | | ?????????????????????????????????????????????????? | | ?????????????????????????????????????????????????? | | ?????????????????????????????????????????????????? | | ?????????????????????????????????????????????????? | | ?????????????????????????????????????????????????? | | ??????????????????????? ?????????????????????? | | ????????????????????? ????????????????????? | | ?????????????????????? ????????????????????? | | ?????????????????????? ????????????????????? | | ?????????????????????? ????????????????????? | | ?????????????????????? #????????????????????? | | ??????????????????????# k##???????????????????? | | ?????????????????????## ##??????????????????? | | ?????????????????????? ##?????????????????? | | ?????????????????????? #?????????????????? | | ??????????????????????? #?????????????????? | | ??????????????????????? #??????????????????? | | ???????????????????????# #??????????????????? | | ???????????????????##??# ########???????????? | | ??????????? #????# ?# ????????????? | | ????????? % %##### #???????????????????? | | ????????? %=!%%! ##???????????????????? | | ????????? % !% %=l@ #????????????????????? | | ????????? ## ####### #????????????????????? | | ?????????? ####????????# ##???????????????????? | | ??????????????????????#### ##???????????????????? | | ??????????????????######## %##???????????????????? | | ??????????????????# !%%##???????????????????? | | ??????????????????# ### ##%*##???????????????????? | | ??????????????????# ### ## #????????????????????? | | ?????????????????# ## ## ??????????????????? | | ?????????????????## #???????????????? | | ??????????????????## !% ##???????????????? | | ????????????????????# #????????????????? | | ????????????????????##### ???????????????? | | ?????????????????????????# ??????????????? | | ?????????????????????????? ####?????????????? | | ?????????????????????????? #????????????????? | | ?????????????????????????? ##????????????????? | | ?????????????????????????? ###?????????????????? | | ?????????????????????????? ##???????????????????? | | ?????????????????????????? ?????????????????????? | | ?????????????????????????????????????????????????? | | ?????????????????????????????????????????????????? | | ?????????????????????????????????????????????????? | | ?????????????????????????????????????????????????? | | ?????????????????????????????????????????????????? | +----------------------------------------------------+ Best States ------------- Heat Dissipation 25 Energy Generation 10 Energy Capacity 250 Matter Stores 300 Matter Capacity 300 Sight Range 16 Terrain Scan Density 10 Armor Coverage 150 Utility Shielding 33 Evasion (%) 50 Recoil Reduction 2 Item Schematics ----------------- None Robot Schematics ------------------ None Fabricated ------------ Nothing Alien Tech Used ----------------- None Achievements -------------- Hunted Challenges ------------ None Game ------ Seed ArmorPropulsionAccelerator Manual? 0 Play Time 00:15:26 Cumulative 22.4 hours Start 2024.04.28 @ 16:35:35 End 2024.04.28 @ 16:57:18 Sessions 1 Manual Loads 0 Difficulty Rogue Special Mode None Game No. 14 Rogue 14 Adventurer 0 Explorer 0 Win Type - Total 0 Types 0/0/0/0/0/0/0/0/0 Lore% 19 Gallery% 25 Achievement% 23 Wizard Run 0 Options --------- Layout 1 ASCII 0 Keyboard 1 Movement Arrows Keybinds 0 Fullscreen 2 Font 24/Smallcaps Map View 50x35 Zoom Use 0% Tactical HUD 1 Map Filters NONE Filters NONE Steam 0 RUN: 9ced191e-cc3c-4202-9031-b3f6e7bd59d4